[Event "Betsys MČR v online bleskovém šachu 2021"]
[Site "Chess.com"]
[Date "2021.04.17"]
[Round "11"]
[White "stripe122"]
[Black "marfuss"]
[Result "1-0"]
[WhiteElo "1816"]
[BlackElo "1946"]
[TimeControl "180+1"]
[EndTime "10:51:01 PDT"]
[Termination "Uživatel stripe122 zvítězil matem"]

1. e4 {[%clk 0:03:00.9]} 1... e5 {[%clk 0:02:59.9]} 2. Nf3 {[%clk 0:03:00]} 2...
Nf6 {[%clk 0:02:59.8]} 3. Nc3 {[%clk 0:02:57.3]} 3... Nc6 {[%clk 0:02:59.7]} 4.
Bb5 {[%clk 0:02:53.5]} 4... Nd4 {[%clk 0:02:59.6]} 5. Ba4 {[%clk 0:02:39.2]}
5... Nxf3+ {[%clk 0:02:49.8]} 6. Qxf3 {[%clk 0:02:37.6]} 6... Bc5 {[%clk
0:02:49.2]} 7. O-O {[%clk 0:02:36.5]} 7... O-O {[%clk 0:02:48.7]} 8. d3 {[%clk
0:02:22.6]} 8... h6 {[%clk 0:02:46.8]} 9. Qg3 {[%clk 0:02:06.8]} 9... Kh7 {[%clk
0:02:39.6]} 10. Qxe5 {[%clk 0:02:03.3]} 10... d6 {[%clk 0:02:34.5]} 11. Qg3
{[%clk 0:02:00.2]} 11... a6 {[%clk 0:02:27.6]} 12. Be3 {[%clk 0:01:59.2]} 12...
b5 {[%clk 0:02:22.5]} 13. Bb3 {[%clk 0:01:53.6]} 13... Bb7 {[%clk 0:02:13.7]}
14. Bxc5 {[%clk 0:01:52.3]} 14... dxc5 {[%clk 0:02:14.6]} 15. a4 {[%clk
0:01:44]} 15... b4 {[%clk 0:02:10]} 16. Ne2 {[%clk 0:01:39.5]} 16... a5 {[%clk
0:02:07.1]} 17. f4 {[%clk 0:01:31]} 17... Qd7 {[%clk 0:01:53.3]} 18. Qe3 {[%clk
0:01:26]} 18... Qc6 {[%clk 0:01:45.3]} 19. h3 {[%clk 0:01:15.4]} 19... Ba6
{[%clk 0:01:31.2]} 20. e5 {[%clk 0:00:56.2]} 20... Ng8 {[%clk 0:01:10.4]} 21.
Ng3 {[%clk 0:00:44.7]} 21... Ne7 {[%clk 0:01:07.8]} 22. Ne4 {[%clk 0:00:41.3]}
22... Nf5 {[%clk 0:01:01.3]} 23. Qxc5 {[%clk 0:00:37.6]} 23... Qxc5+ {[%clk
0:00:48.6]} 24. Nxc5 {[%clk 0:00:36.8]} 24... Nd4 {[%clk 0:00:46.6]} 25. Nxa6
{[%clk 0:00:33.8]} 25... Rxa6 {[%clk 0:00:46.6]} 26. Bc4 {[%clk 0:00:31.1]}
26... Rc6 {[%clk 0:00:44.9]} 27. c3 {[%clk 0:00:29.1]} 27... bxc3 {[%clk
0:00:35.3]} 28. bxc3 {[%clk 0:00:28.1]} 28... Nc2 {[%clk 0:00:35.7]} 29. Ra2
{[%clk 0:00:19.5]} 29... Ne3 {[%clk 0:00:35.2]} 30. Bb5 {[%clk 0:00:19]} 30...
Rxc3 {[%clk 0:00:31.6]} 31. Re1 {[%clk 0:00:15.3]} 31... Nf5 {[%clk 0:00:28.3]}
32. Bc4 {[%clk 0:00:13.8]} 32... Nd4 {[%clk 0:00:25.6]} 33. Kf2 {[%clk
0:00:11.8]} 33... f6 {[%clk 0:00:24.2]} 34. Ke3 {[%clk 0:00:10.4]} 34... Nf5+
{[%clk 0:00:19.7]} 35. Kd2 {[%clk 0:00:09.4]} 35... Rxc4 {[%clk 0:00:19.4]} 36.
dxc4 {[%clk 0:00:08.2]} 36... fxe5 {[%clk 0:00:19.6]} 37. fxe5 {[%clk
0:00:07.7]} 37... Re8 {[%clk 0:00:19.5]} 38. Kd3 {[%clk 0:00:07.5]} 38... Kg6
{[%clk 0:00:19.9]} 39. Rae2 {[%clk 0:00:07.4]} 39... Ne7 {[%clk 0:00:18.5]} 40.
e6 {[%clk 0:00:07.5]} 40... Kf6 {[%clk 0:00:18.5]} 41. Kd4 {[%clk 0:00:07]}
41... Nf5+ {[%clk 0:00:18.3]} 42. Kc5 {[%clk 0:00:06.9]} 42... Nd6 {[%clk
0:00:18.1]} 43. Kc6 {[%clk 0:00:06.3]} 43... Nxc4 {[%clk 0:00:18.2]} 44. e7
{[%clk 0:00:04.6]} 44... Nd6 {[%clk 0:00:15.8]} 45. Kd7 {[%clk 0:00:04]} 45...
Kf7 {[%clk 0:00:14.6]} 46. Rd2 {[%clk 0:00:04]} 46... Kg6 {[%clk 0:00:14.4]} 47.
Rxd6+ {[%clk 0:00:04]} 47... cxd6 {[%clk 0:00:14.5]} 48. Kxe8 {[%clk 0:00:04.9]}
48... Kf6 {[%clk 0:00:13.9]} 49. Kd7 {[%clk 0:00:05.5]} 49... d5 {[%clk
0:00:14.8]} 50. e8=Q {[%clk 0:00:05.7]} 50... d4 {[%clk 0:00:15.7]} 51. Qe2
{[%clk 0:00:05.6]} 51... d3 {[%clk 0:00:16.6]} 52. Qxd3 {[%clk 0:00:06.3]} 52...
Kf7 {[%clk 0:00:15.9]} 53. Qb5 {[%clk 0:00:07.2]} 53... Kf6 {[%clk 0:00:16.3]}
54. Qxa5 {[%clk 0:00:08]} 54... h5 {[%clk 0:00:15.5]} 55. Qb6+ {[%clk 0:00:08]}
55... Kg5 {[%clk 0:00:15.8]} 56. Qc5+ {[%clk 0:00:08.5]} 56... Kh6 {[%clk
0:00:15.9]} 57. Qd6+ {[%clk 0:00:07.9]} 57... g6 {[%clk 0:00:16.3]} 58. Re6
{[%clk 0:00:05.8]} 58... Kg5 {[%clk 0:00:16.7]} 59. Rxg6+ {[%clk 0:00:05.6]}
59... Kf5 {[%clk 0:00:17.6]} 60. Qe6+ {[%clk 0:00:05.6]} 60... Kf4 {[%clk
0:00:18]} 61. Qc4+ {[%clk 0:00:05]} 61... Ke3 {[%clk 0:00:17.4]} 62. Rd6 {[%clk
0:00:05.3]} 62... Kf2 {[%clk 0:00:16.8]} 63. Rd3 {[%clk 0:00:05.2]} 63... Kg1
{[%clk 0:00:16.8]} 64. g4 {[%clk 0:00:05.8]} 64... Kh2 {[%clk 0:00:17]} 65. Qc2+
{[%clk 0:00:05.7]} 65... Kg1 {[%clk 0:00:16.2]} 66. Rd1# {[%clk 0:00:06.6]} 1-0

[Event "Betsys MČR v online bleskovém šachu 2021"]
[Site "Chess.com"]
[Date "2021.04.17"]
[Round "11"]
[White "Berzeger"]
[Black "Tassa15"]
[Result "0-1"]
[WhiteElo "1010"]
[BlackElo "877"]
[TimeControl "180+1"]
[EndTime "10:51:02 PDT"]
[Termination "Uživatel Tassa15 zvítězil na čas"]

1. e4 {[%clk 0:03:00.9]} 1... d5 {[%clk 0:02:59.6]} 2. exd5 {[%clk 0:03:00.5]}
2... Qxd5 {[%clk 0:02:59.3]} 3. Nc3 {[%clk 0:03:01.1]} 3... Qd6 {[%clk
0:02:59.3]} 4. Nf3 {[%clk 0:02:59.9]} 4... c6 {[%clk 0:02:59.2]} 5. Bc4 {[%clk
0:02:55.7]} 5... Bg4 {[%clk 0:02:58.2]} 6. h3 {[%clk 0:02:54.2]} 6... Bh5 {[%clk
0:02:57.5]} 7. O-O {[%clk 0:02:52.1]} 7... Nf6 {[%clk 0:02:56.9]} 8. d3 {[%clk
0:02:50.8]} 8... e6 {[%clk 0:02:56.6]} 9. Qe2 {[%clk 0:02:43.1]} 9... Nbd7
{[%clk 0:02:54]} 10. Ne4 {[%clk 0:02:27.7]} 10... Nxe4 {[%clk 0:02:51.6]} 11.
dxe4 {[%clk 0:02:27.9]} 11... Qc7 {[%clk 0:02:47.7]} 12. Qe3 {[%clk 0:02:21.8]}
12... Bd6 {[%clk 0:02:45.6]} 13. b3 {[%clk 0:02:15.7]} 13... Bf4 {[%clk
0:02:44.2]} 14. Qd3 {[%clk 0:02:08.4]} 14... Nf6 {[%clk 0:02:43.1]} 15. Bxf4
{[%clk 0:02:02.4]} 15... Qxf4 {[%clk 0:02:42.8]} 16. Rae1 {[%clk 0:01:53.7]}
16... O-O {[%clk 0:02:41.8]} 17. e5 {[%clk 0:01:45.1]} 17... Rad8 {[%clk
0:02:34.4]} 18. Qe3 {[%clk 0:01:32.9]} 18... Qxe3 {[%clk 0:02:23.6]} 19. Rxe3
{[%clk 0:01:33.8]} 19... Nd5 {[%clk 0:02:19.1]} 20. Bxd5 {[%clk 0:01:26]} 20...
Rxd5 {[%clk 0:02:17.1]} 21. c4 {[%clk 0:01:24.8]} 21... Rd7 {[%clk 0:02:11.8]}
22. Ng5 {[%clk 0:01:05.3]} 22... h6 {[%clk 0:02:08.8]} 23. Ne4 {[%clk
0:01:00.5]} 23... Rfd8 {[%clk 0:02:07.5]} 24. Ree1 {[%clk 0:00:53.4]} 24... Rd4
{[%clk 0:02:04.6]} 25. Nc5 {[%clk 0:00:50.5]} 25... b6 {[%clk 0:01:55.2]} 26.
Nb7 {[%clk 0:00:45.5]} 26... R8d7 {[%clk 0:01:54]} 27. Nd6 {[%clk 0:00:45.4]}
27... Rd2 {[%clk 0:01:51.3]} 28. a4 {[%clk 0:00:43.9]} 28... Rd3 {[%clk
0:01:49.7]} 29. b4 {[%clk 0:00:41.6]} 29... Rd2 {[%clk 0:01:40.7]} 30. b5 {[%clk
0:00:32.9]} 30... cxb5 {[%clk 0:01:39.3]} 31. axb5 {[%clk 0:00:33.4]} 31... Be2
{[%clk 0:01:37]} 32. Ne4 {[%clk 0:00:25.9]} 32... Rc2 {[%clk 0:01:31.3]} 33. Rc1
{[%clk 0:00:15.9]} 33... Rxc1 {[%clk 0:01:14.9]} 34. Rxc1 {[%clk 0:00:15.6]}
34... Bd3 {[%clk 0:01:12.6]} 35. Rd1 {[%clk 0:00:15.3]} 35... Rd4 {[%clk
0:01:04.5]} 36. Ng3 {[%clk 0:00:14.3]} 36... Kf8 {[%clk 0:00:39.6]} 37. Ne2
{[%clk 0:00:14.2]} 37... Rd8 {[%clk 0:00:36.7]} 38. Nc3 {[%clk 0:00:12.9]} 38...
Ke7 {[%clk 0:00:36.4]} 39. Ne2 {[%clk 0:00:02.8]} 39... Bxc4 {[%clk 0:00:35.6]}
40. Rxd8 {[%clk 0:00:01.5]} 40... Kxd8 {[%clk 0:00:34.4]} 41. Nc3 {[%clk
0:00:02.4]} 41... Bd3 {[%clk 0:00:30.2]} 42. Kh2 {[%clk 0:00:03]} 42... Kd7
{[%clk 0:00:29.8]} 43. f4 {[%clk 0:00:03.4]} 43... Ke7 {[%clk 0:00:28]} 44. g3
{[%clk 0:00:04.1]} 44... f6 {[%clk 0:00:27.4]} 45. h4 {[%clk 0:00:05]} 45...
fxe5 {[%clk 0:00:26.7]} 46. fxe5 {[%clk 0:00:05.9]} 46... Bf5 {[%clk 0:00:24.9]}
47. Kg2 {[%clk 0:00:05.2]} 47... Kf7 {[%clk 0:00:24.5]} 48. Kf3 {[%clk
0:00:04.9]} 48... Kg6 {[%clk 0:00:23.9]} 49. Kf4 {[%clk 0:00:05.6]} 49... Kh5
{[%clk 0:00:19.9]} 50. Na4 {[%clk 0:00:05.3]} 50... Bc2 {[%clk 0:00:15.5]} 51.
Nb2 {[%clk 0:00:06]} 51... Bb3 {[%clk 0:00:11.6]} 52. Nd3 {[%clk 0:00:02.9]}
52... Bc4 {[%clk 0:00:10.6]} 53. Nf2 {[%clk 0:00:02.5]} 53... Bxb5 {[%clk
0:00:10.1]} 54. Ne4 {[%clk 0:00:01.8]} 54... Bc6 {[%clk 0:00:09.3]} 55. Nd6
{[%clk 0:00:01.9]} 55... b5 {[%clk 0:00:07.1]} 56. Nc8 {[%clk 0:00:01.7]} 56...
a5 {[%clk 0:00:06.6]} 57. Na7 {[%clk 0:00:02]} 57... b4 {[%clk 0:00:05.8]} 58.
Nxc6 {[%clk 0:00:02.1]} 58... b3 {[%clk 0:00:04.8]} 0-1

[Event "Betsys MČR v online bleskovém šachu 2021"]
[Site "Chess.com"]
[Date "2021.04.17"]
[Round "11"]
[White "sharpi5135"]
[Black "JonasFadrny"]
[Result "1-0"]
[WhiteElo "745"]
[BlackElo "723"]
[TimeControl "180+1"]
[EndTime "10:51:02 PDT"]
[Termination "Uživatel sharpi5135 zvítězil na čas"]

1. d4 {[%clk 0:02:59.6]} 1... d5 {[%clk 0:02:57.4]} 2. e3 {[%clk 0:02:54.7]}
2... Nc6 {[%clk 0:02:55.9]} 3. Bb5 {[%clk 0:02:53.3]} 3... Nf6 {[%clk
0:02:54.6]} 4. c4 {[%clk 0:02:50.1]} 4... dxc4 {[%clk 0:02:49.7]} 5. Bxc4 {[%clk
0:02:48.7]} 5... Ne4 {[%clk 0:02:40.1]} 6. Bb5 {[%clk 0:02:36.4]} 6... Bd7
{[%clk 0:02:39]} 7. Nc3 {[%clk 0:02:31.6]} 7... Nxc3 {[%clk 0:02:37.3]} 8. bxc3
{[%clk 0:02:28.5]} 8... a6 {[%clk 0:02:35.6]} 9. Ba4 {[%clk 0:02:11.8]} 9... b5
{[%clk 0:02:34.2]} 10. Bb3 {[%clk 0:02:10.2]} 10... Be6 {[%clk 0:02:31.6]} 11.
Qf3 {[%clk 0:02:07.3]} 11... Bxb3 {[%clk 0:02:29.5]} 12. axb3 {[%clk 0:02:01.3]}
12... b4 {[%clk 0:02:25.2]} 13. Qxc6+ {[%clk 0:01:59.8]} 13... Qd7 {[%clk
0:02:20.4]} 14. Qxd7+ {[%clk 0:01:58.3]} 14... Kxd7 {[%clk 0:02:19.7]} 15. cxb4
{[%clk 0:01:58.1]} 15... a5 {[%clk 0:02:16.9]} 16. bxa5 {[%clk 0:01:55.3]} 16...
e6 {[%clk 0:02:12.7]} 17. Bd2 {[%clk 0:01:54.3]} 17... Be7 {[%clk 0:02:02.4]}
18. Nf3 {[%clk 0:01:49.6]} 18... g5 {[%clk 0:01:52.9]} 19. Ne5+ {[%clk
0:01:47.4]} 19... Kd6 {[%clk 0:01:51.1]} 20. Nxf7+ {[%clk 0:01:45.7]} 20... Kd7
{[%clk 0:01:49]} 21. Nxh8 {[%clk 0:01:44.3]} 21... Rxh8 {[%clk 0:01:47]} 22. O-O
{[%clk 0:01:43.3]} 22... Ra8 {[%clk 0:01:45.2]} 23. a6 {[%clk 0:01:42.2]} 23...
h5 {[%clk 0:01:26.6]} 24. Ra5 {[%clk 0:01:37.6]} 24... Bd8 {[%clk 0:01:21.5]}
25. g3 {[%clk 0:01:26.7]} 25... c6 {[%clk 0:01:21.3]} 26. Ra4 {[%clk 0:01:26]}
26... g4 {[%clk 0:01:17.2]} 27. Kg2 {[%clk 0:01:23.5]} 27... h4 {[%clk
0:01:12.4]} 28. h3 {[%clk 0:01:15.4]} 28... gxh3+ {[%clk 0:01:11.3]} 29. Kxh3
{[%clk 0:01:14.5]} 29... Kd6 {[%clk 0:01:03.3]} 30. e4 {[%clk 0:01:12.4]} 30...
e5 {[%clk 0:00:59]} 31. dxe5+ {[%clk 0:01:10.1]} 31... Kxe5 {[%clk 0:00:58.1]}
32. Bf4+ {[%clk 0:01:08.6]} 32... Ke6 {[%clk 0:00:55.1]} 33. b4 {[%clk
0:01:00.5]} 33... Kf6 {[%clk 0:00:47.2]} 34. gxh4 {[%clk 0:00:58.6]} 34... Kg6
{[%clk 0:00:44.2]} 35. e5 {[%clk 0:00:55.6]} 35... Kf5 {[%clk 0:00:39.6]} 36. f3
{[%clk 0:00:51.2]} 36... Bc7 {[%clk 0:00:30.4]} 37. Rg1 {[%clk 0:00:47.7]} 37...
Ke6 {[%clk 0:00:23.9]} 38. Rg6+ {[%clk 0:00:42.5]} 38... Kd5 {[%clk 0:00:22.5]}
39. e6 {[%clk 0:00:41]} 39... Bxf4 {[%clk 0:00:19.8]} 40. Kg4 {[%clk 0:00:37.8]}
40... Bd6 {[%clk 0:00:18.4]} 41. a7 {[%clk 0:00:32.5]} 41... Rf8 {[%clk
0:00:16.8]} 42. Rg5+ {[%clk 0:00:28.5]} 42... Kxe6 {[%clk 0:00:13.5]} 43. a8=Q
{[%clk 0:00:20.9]} 43... Rf4+ {[%clk 0:00:12.2]} 44. Kh5 {[%clk 0:00:18.6]}
44... Rf8 {[%clk 0:00:09]} 45. Qxf8 {[%clk 0:00:15.7]} 45... Bxf8 {[%clk
0:00:08.3]} 46. Rg6+ {[%clk 0:00:13.5]} 46... Kf7 {[%clk 0:00:06.6]} 47. Ra7+
{[%clk 0:00:10.8]} 47... Be7 {[%clk 0:00:06]} 48. Rxe7+ {[%clk 0:00:08]} 48...
Kxe7 {[%clk 0:00:04.6]} 49. Rxc6 {[%clk 0:00:07.4]} 49... Kd7 {[%clk 0:00:03.8]}
50. Rh6 {[%clk 0:00:06.8]} 50... Kc7 {[%clk 0:00:02.3]} 51. Rh7+ {[%clk
0:00:06.1]} 51... Kb6 {[%clk 0:00:01.7]} 52. Rh6+ {[%clk 0:00:05.6]} 52... Kb5
{[%clk 0:00:01.3]} 53. Rh7 {[%clk 0:00:04.9]} 53... Kxb4 {[%clk 0:00:01.1]} 54.
Rb7+ {[%clk 0:00:04.3]} 54... Kc3 {[%clk 0:00:01.5]} 55. Rc7+ {[%clk 0:00:03.8]}
55... Kd2 {[%clk 0:00:02]} 56. Rd7+ {[%clk 0:00:03.5]} 56... Ke3 {[%clk
0:00:01.7]} 57. Re7+ {[%clk 0:00:03.5]} 57... Kxf3 {[%clk 0:00:01.6]} 58. Rf7+
{[%clk 0:00:03.5]} 1-0

[Event "Betsys MČR v online bleskovém šachu 2021"]
[Site "Chess.com"]
[Date "2021.04.17"]
[Round "11"]
[White "Eliska0107"]
[Black "TheFr0zenSun"]
[Result "0-1"]
[WhiteElo "2052"]
[BlackElo "2251"]
[TimeControl "180+1"]
[EndTime "10:51:08 PDT"]
[Termination "Uživatel TheFr0zenSun zvítězil na čas"]

1. e4 {[%clk 0:02:58.1]} 1... e5 {[%clk 0:02:57.9]} 2. Nf3 {[%clk 0:02:57.5]}
2... Nf6 {[%clk 0:02:57.6]} 3. d3 {[%clk 0:02:54.9]} 3... Nc6 {[%clk 0:02:52.4]}
4. Be2 {[%clk 0:02:54]} 4... Bc5 {[%clk 0:02:47.6]} 5. O-O {[%clk 0:02:53.3]}
5... h6 {[%clk 0:02:46.9]} 6. c3 {[%clk 0:02:53.2]} 6... d6 {[%clk 0:02:43.4]}
7. Be3 {[%clk 0:02:50.8]} 7... Bb6 {[%clk 0:02:37.1]} 8. Nbd2 {[%clk 0:02:50.2]}
8... O-O {[%clk 0:02:36.1]} 9. Bxb6 {[%clk 0:02:48.4]} 9... axb6 {[%clk
0:02:35.8]} 10. a3 {[%clk 0:02:48.7]} 10... Re8 {[%clk 0:02:35]} 11. Qc2 {[%clk
0:02:46.7]} 11... d5 {[%clk 0:02:30.1]} 12. Rfe1 {[%clk 0:02:45.7]} 12... Bg4
{[%clk 0:02:22.7]} 13. Nf1 {[%clk 0:02:43.5]} 13... d4 {[%clk 0:01:50.8]} 14.
Ng3 {[%clk 0:02:42.9]} 14... dxc3 {[%clk 0:01:45.9]} 15. bxc3 {[%clk 0:02:42.3]}
15... Qd6 {[%clk 0:01:45.3]} 16. a4 {[%clk 0:02:41.3]} 16... Ra5 {[%clk
0:01:28.7]} 17. Nd2 {[%clk 0:02:39.2]} 17... Bxe2 {[%clk 0:01:26.8]} 18. Rxe2
{[%clk 0:02:38.7]} 18... Rd8 {[%clk 0:01:26.6]} 19. Nc4 {[%clk 0:02:37.5]} 19...
Qxd3 {[%clk 0:01:23.6]} 20. Nxa5 {[%clk 0:02:31.6]} 20... Nxa5 {[%clk
0:01:20.9]} 21. Qxd3 {[%clk 0:02:23.7]} 21... Rxd3 {[%clk 0:01:19.9]} 22. Rc1
{[%clk 0:02:22.7]} 22... Nd7 {[%clk 0:01:19.7]} 23. Nf5 {[%clk 0:02:06.2]} 23...
Nc5 {[%clk 0:01:17.5]} 24. Ne7+ {[%clk 0:02:00.7]} 24... Kf8 {[%clk 0:01:16.3]}
25. Nd5 {[%clk 0:02:00.5]} 25... Nab3 {[%clk 0:00:56.2]} 26. Rce1 {[%clk
0:01:44.1]} 26... c6 {[%clk 0:00:56.2]} 27. Nxb6 {[%clk 0:01:42.8]} 27... Rxc3
{[%clk 0:00:56.4]} 28. f3 {[%clk 0:01:38.8]} 28... Nd4 {[%clk 0:00:55.4]} 29.
Rb2 {[%clk 0:01:34.4]} 29... Nd3 {[%clk 0:00:54.3]} 30. Reb1 {[%clk 0:01:32.9]}
30... Nxb2 {[%clk 0:00:52.2]} 31. Rxb2 {[%clk 0:01:33.2]} 31... Ke7 {[%clk
0:00:44.5]} 32. Kf2 {[%clk 0:01:20.6]} 32... f6 {[%clk 0:00:43.7]} 33. h4 {[%clk
0:01:13.7]} 33... Kd8 {[%clk 0:00:38.3]} 34. a5 {[%clk 0:01:10.2]} 34... Kc7
{[%clk 0:00:38.2]} 35. Na4 {[%clk 0:01:06.4]} 35... Rc4 {[%clk 0:00:33]} 36. Nb6
{[%clk 0:00:58.2]} 36... Rc5 {[%clk 0:00:29]} 37. a6 {[%clk 0:00:43.1]} 37...
bxa6 {[%clk 0:00:20]} 38. Na8+ {[%clk 0:00:42.7]} 38... Kd6 {[%clk 0:00:20.1]}
39. Rb7 {[%clk 0:00:37.7]} 39... Rc2+ {[%clk 0:00:19.9]} 40. Kg3 {[%clk
0:00:37]} 40... Ne2+ {[%clk 0:00:20.5]} 41. Kg4 {[%clk 0:00:33.1]} 41... Nf4
{[%clk 0:00:20.6]} 42. g3 {[%clk 0:00:30.8]} 42... Ne6 {[%clk 0:00:20.7]} 43.
Nb6 {[%clk 0:00:23.8]} 43... g6 {[%clk 0:00:20.3]} 44. Nc8+ {[%clk 0:00:20.4]}
44... Kc5 {[%clk 0:00:20.6]} 45. Re7 {[%clk 0:00:20]} 45... h5+ {[%clk
0:00:20.3]} 46. Kh3 {[%clk 0:00:19.2]} 46... Nd4 {[%clk 0:00:20.8]} 47. f4
{[%clk 0:00:15.6]} 47... exf4 {[%clk 0:00:19.9]} 48. gxf4 {[%clk 0:00:15.6]}
48... a5 {[%clk 0:00:19.7]} 49. Rf7 {[%clk 0:00:14]} 49... f5 {[%clk 0:00:19.8]}
50. e5 {[%clk 0:00:13.5]} 50... a4 {[%clk 0:00:19.5]} 51. Ra7 {[%clk 0:00:13.1]}
51... Rc3+ {[%clk 0:00:17.8]} 52. Kg2 {[%clk 0:00:11.5]} 52... a3 {[%clk
0:00:18.4]} 53. Ne7 {[%clk 0:00:10.2]} 53... Rc2+ {[%clk 0:00:17.1]} 54. Kg3
{[%clk 0:00:10.1]} 54... a2 {[%clk 0:00:17.4]} 55. Nxg6 {[%clk 0:00:10.2]} 55...
Nb3 {[%clk 0:00:17.5]} 56. e6 {[%clk 0:00:10]} 56... a1=Q {[%clk 0:00:17.3]} 57.
Rxa1 {[%clk 0:00:09.4]} 57... Nxa1 {[%clk 0:00:18.2]} 58. e7 {[%clk 0:00:09.7]}
58... Re2 {[%clk 0:00:18.7]} 59. Kf3 {[%clk 0:00:09.1]} 59... Re6 {[%clk
0:00:18.9]} 60. Ne5 {[%clk 0:00:08.5]} 60... Rxe7 {[%clk 0:00:18.9]} 61. Nd3+
{[%clk 0:00:08.5]} 61... Kd6 {[%clk 0:00:18.6]} 62. Ne5 {[%clk 0:00:08.6]} 62...
Rxe5 {[%clk 0:00:18.4]} 63. fxe5+ {[%clk 0:00:08.5]} 63... Kxe5 {[%clk
0:00:19.3]} 0-1

[Event "Betsys MČR v online bleskovém šachu 2021"]
[Site "Chess.com"]
[Date "2021.04.17"]
[Round "11"]
[White "p_kana"]
[Black "RomanHlavicka"]
[Result "1-0"]
[WhiteElo "1782"]
[BlackElo "1530"]
[TimeControl "180+1"]
[EndTime "10:51:12 PDT"]
[Termination "Uživatel p_kana zvítězil na čas"]

1. e4 {[%clk 0:03:00.9]} 1... d5 {[%clk 0:02:59.2]} 2. exd5 {[%clk 0:02:58.8]}
2... Nf6 {[%clk 0:02:59.2]} 3. c4 {[%clk 0:02:56.9]} 3... c6 {[%clk 0:02:58.9]}
4. d4 {[%clk 0:02:55.3]} 4... cxd5 {[%clk 0:02:57.6]} 5. Nc3 {[%clk 0:02:55.4]}
5... Nc6 {[%clk 0:02:54.2]} 6. Nf3 {[%clk 0:02:54.1]} 6... Bg4 {[%clk
0:02:52.3]} 7. cxd5 {[%clk 0:02:52.3]} 7... Nxd5 {[%clk 0:02:48.6]} 8. Qb3
{[%clk 0:02:50.7]} 8... Bxf3 {[%clk 0:02:41.6]} 9. gxf3 {[%clk 0:02:51.6]} 9...
Nxd4 {[%clk 0:02:31.6]} 10. Bb5+ {[%clk 0:02:25.5]} 10... Nxb5 {[%clk
0:02:24.9]} 11. Qxb5+ {[%clk 0:02:22.9]} 11... Qd7 {[%clk 0:02:22.1]} 12. Qxd7+
{[%clk 0:02:17.6]} 12... Kxd7 {[%clk 0:02:22.2]} 13. Nxd5 {[%clk 0:02:15.9]}
13... e6 {[%clk 0:02:20.6]} 14. Nc3 {[%clk 0:02:14]} 14... Bb4 {[%clk 0:02:13]}
15. Be3 {[%clk 0:02:10.7]} 15... a6 {[%clk 0:02:06.3]} 16. O-O-O+ {[%clk
0:02:09]} 16... Ke7 {[%clk 0:02:05.2]} 17. Rd3 {[%clk 0:02:02.1]} 17... Rac8
{[%clk 0:02:04.2]} 18. Kc2 {[%clk 0:02:00.6]} 18... Rc6 {[%clk 0:01:54.5]} 19.
Rg1 {[%clk 0:01:56.2]} 19... g6 {[%clk 0:01:50.7]} 20. a3 {[%clk 0:01:49.4]}
20... Ba5 {[%clk 0:01:47.7]} 21. b4 {[%clk 0:01:47.5]} 21... Bc7 {[%clk
0:01:40.2]} 22. h3 {[%clk 0:01:46.5]} 22... Be5 {[%clk 0:01:38]} 23. Kb3 {[%clk
0:01:38.6]} 23... Rhc8 {[%clk 0:01:32.6]} 24. Bc5+ {[%clk 0:01:28.1]} 24... Kf6
{[%clk 0:01:30.1]} 25. Ne4+ {[%clk 0:01:23.4]} 25... Kg7 {[%clk 0:01:27.2]} 26.
Rgd1 {[%clk 0:01:14.8]} 26... b6 {[%clk 0:01:25.9]} 27. Bd4 {[%clk 0:01:10.2]}
27... Bxd4 {[%clk 0:01:16.8]} 28. Rxd4 {[%clk 0:01:11.1]} 28... b5 {[%clk
0:01:17]} 29. Nc5 {[%clk 0:01:08.6]} 29... a5 {[%clk 0:01:13.1]} 30. Rd6 {[%clk
0:01:04.5]} 30... Rxd6 {[%clk 0:01:08.8]} 31. Rxd6 {[%clk 0:01:02.7]} 31... a4+
{[%clk 0:01:04.9]} 32. Kc3 {[%clk 0:01:00.7]} 32... Kf6 {[%clk 0:01:02.9]} 33.
Kd4 {[%clk 0:00:53.5]} 33... h5 {[%clk 0:01:00.4]} 34. Ke4 {[%clk 0:00:51]}
34... Kg5 {[%clk 0:00:57.4]} 35. Ke5 {[%clk 0:00:47.1]} 35... Re8 {[%clk
0:00:54.3]} 36. Rd4 {[%clk 0:00:45.8]} 36... f6+ {[%clk 0:00:52.8]} 37. Ke4
{[%clk 0:00:41]} 37... e5 {[%clk 0:00:51.2]} 38. Rd6 {[%clk 0:00:37.1]} 38...
f5+ {[%clk 0:00:46.9]} 39. Ke3 {[%clk 0:00:36.8]} 39... h4 {[%clk 0:00:43]} 40.
Ne6+ {[%clk 0:00:29]} 40... Kf6 {[%clk 0:00:35.2]} 41. Nc5+ {[%clk 0:00:28.1]}
41... Ke7 {[%clk 0:00:33.2]} 42. Re6+ {[%clk 0:00:25.7]} 42... Kf7 {[%clk
0:00:31.8]} 43. Rxe8 {[%clk 0:00:25.4]} 43... Kxe8 {[%clk 0:00:31.1]} 44. Nb7
{[%clk 0:00:24.3]} 44... Kd7 {[%clk 0:00:29.5]} 45. Nc5+ {[%clk 0:00:24.1]}
45... Kd6 {[%clk 0:00:24.8]} 46. f4 {[%clk 0:00:21.9]} 46... e4 {[%clk
0:00:21.9]} 47. Kd4 {[%clk 0:00:20.9]} 47... Kc6 {[%clk 0:00:17.3]} 48. Ne6
{[%clk 0:00:17.5]} 48... Kd6 {[%clk 0:00:15]} 49. Nf8 {[%clk 0:00:17.4]} 49...
g5 {[%clk 0:00:11.9]} 50. fxg5 {[%clk 0:00:12.7]} 50... Ke7 {[%clk 0:00:11.9]}
51. Ng6+ {[%clk 0:00:10.8]} 51... Kf7 {[%clk 0:00:11.1]} 52. Nxh4 {[%clk
0:00:10.4]} 52... Kg7 {[%clk 0:00:08.4]} 53. Nxf5+ {[%clk 0:00:09.9]} 53... Kg6
{[%clk 0:00:08.5]} 54. Kxe4 {[%clk 0:00:08.9]} 54... Kxg5 {[%clk 0:00:08.3]} 55.
f4+ {[%clk 0:00:09.1]} 55... Kf6 {[%clk 0:00:06.9]} 56. h4 {[%clk 0:00:09.2]}
56... Kf7 {[%clk 0:00:06.6]} 57. h5 {[%clk 0:00:09.3]} 57... Kf6 {[%clk
0:00:05.8]} 58. h6 {[%clk 0:00:09.6]} 58... Kg6 {[%clk 0:00:04.9]} 59. Kd5
{[%clk 0:00:08.8]} 59... Kxf5 {[%clk 0:00:04.2]} 60. h7 {[%clk 0:00:07.6]} 60...
Kxf4 {[%clk 0:00:04]} 61. h8=Q {[%clk 0:00:08.5]} 61... Kf5 {[%clk 0:00:03.4]}
62. Kc5 {[%clk 0:00:09.4]} 62... Ke6 {[%clk 0:00:02.7]} 63. Kxb5 {[%clk
0:00:10.3]} 63... Kd6 {[%clk 0:00:01.9]} 64. Kxa4 {[%clk 0:00:10.1]} 64... Ke7
{[%clk 0:00:01.1]} 65. Kb3 {[%clk 0:00:11]} 1-0